bitfinex/quotes_BTCUSD_20220731
["timestamp","ask_amount","ask_price","bid_price","bid_amount"]
[1659241623010,0.001,23777.0,23775.0,1.32125933]
[1659241623232,0.0014,23778.0,23777.0,0.03024225]
[1659241623450,0.0014,23778.0,23777.0,0.74130858]
[1659241623676,0.0014,23778.0,23777.0,0.73749958]
[1659241623897,0.0014,23778.0,23777.0,0.74249958]
[1659241625250,0.0014,23778.0,23777.0,0.73749958]
[1659241625703,0.13407316,23778.0,23777.0,0.40725733]
[1659241626011,0.0014,23778.0,23777.0,1.01606633]
[1659241626237,0.0014,23778.0,23777.0,0.71225733]
[1659241627152,0.0014,23778.0,23777.0,0.70725733]
[1659241627372,0.0994,23778.0,23777.0,0.40725733]
[1659241627832,0.0014,23778.0,23777.0,0.40725733]
[1659241628289,0.0014,23778.0,23777.0,0.70725733]
[1659241628513,0.0014,23778.0,23777.0,0.40762185]
[1659241628731,0.0014,23778.0,23777.0,0.70762185]
[1659241629431,0.0014,23778.0,23777.0,0.40725733]
[1659241629966,0.0014,23778.0,23775.0,0.61745033]
[1659241630061,0.0014,23778.0,23775.0,0.40725733]
[1659241630303,0.0014,23778.0,23776.0,0.3]
[1659241630526,0.0014,23778.0,23777.0,0.03294293]
[1659241631443,0.0014,23778.0,23777.0,0.03024225]
[1659241631674,0.0014,23778.0,23776.0,0.3]
[1659241632849,0.0014,23778.0,23777.0,0.00270068]
[1659241633093,0.0014,23778.0,23777.0,0.45440801]
[1659241633309,0.0014,23778.0,23777.0,0.75440801]
[1659241634452,0.0014,23778.0,23777.0,0.7458432]
[1659241634665,0.0014,23778.0,23777.0,0.75848668]
[1659241637156,0.03607316,23778.0,23777.0,0.71990081]
[1659241637400,0.0014,23778.0,23777.0,0.70725733]
[1659241637889,0.0014,23778.0,23777.0,0.71225733]
[1659241639060,0.0014,23778.0,23777.0,0.76225733]
[1659241639277,0.0014,23778.0,23777.0,0.75725733]
[1659241639735,0.0014,23778.0,23777.0,0.70725733]
[1659241639967,0.0994,23778.0,23777.0,0.005]
[1659241641595,0.0014,23778.0,23777.0,0.005]
[1659241641809,0.0014,23778.0,23774.0,0.3]
[1659241642035,0.0014,23778.0,23775.0,0.40725733]
[1659241642261,0.0014,23778.0,23775.0,0.61745833]
[1659241642473,0.0014,23778.0,23777.0,0.03024225]
[1659241642944,0.14655068,23778.0,23775.0,0.61745833]
[1659241643178,0.02385843,23778.0,23775.0,0.61745833]
[1659241643398,0.0014,23778.0,23776.0,0.3]
[1659241643619,0.0014,23778.0,23775.0,0.61745833]
[1659241643853,0.00270068,23777.0,23775.0,0.61745833]
[1659241644074,0.0014,23778.0,23776.0,0.3]
[1659241644528,0.0014,23778.0,23773.0,0.59]
[1659241644768,0.05,23777.0,23774.0,0.3]
[1659241645003,0.0014,23778.0,23774.0,0.510207]
[1659241645960,0.03737384,23777.0,23774.0,0.510207]
[1659241646177,0.0014,23778.0,23774.0,0.510207]
[1659241646408,0.05,23777.0,23774.0,0.510207]
[1659241646626,0.01975775,23777.0,23774.0,0.510207]
[1659241646856,0.03737384,23776.0,23774.0,0.3]
[1659241647084,0.01975775,23776.0,23774.0,0.3]
[1659241647292,0.0014,23778.0,23774.0,0.3]
[1659241647737,0.45865733,23778.0,23770.0,0.3747]
[1659241647945,0.45865733,23778.0,23774.0,0.01]
[1659241647946,1.25874117,23777.0,23774.0,0.01]
[1659241648166,1.06975775,23775.0,23774.0,0.01]
[1659241648411,1.67356675,23775.0,23774.0,0.01]
[1659241648646,2.22526675,23775.0,23774.0,0.01]
[1659241649113,2.22526675,23775.0,23766.0,0.9808]
[1659241649379,0.303809,23774.0,23767.0,0.40725733]
[1659241649606,0.603809,23773.0,23767.0,0.40725733]
[1659241649816,0.303809,23772.0,23767.0,0.40725733]
[1659241650030,0.3,23773.0,23767.0,0.40725733]
[1659241650486,0.3,23773.0,23767.0,0.63017081]
[1659241650712,0.3,23773.0,23768.0,0.70725733]
[1659241653228,0.3,23773.0,23768.0,0.70718928]
[1659241653454,0.00071322,23772.0,23768.0,0.70718928]
[1659241653668,0.03737384,23771.0,23768.0,0.70718928]
[1659241653894,0.00071322,23772.0,23768.0,0.70718928]
[1659241654555,0.303809,23771.0,23768.0,0.70718928]
[1659241654774,0.00071322,23772.0,23768.0,0.70718928]
[1659241655891,0.00071322,23772.0,23769.0,0.0002014]
[1659241656338,0.03737384,23771.0,23769.0,0.0002014]
[1659241656551,0.01975775,23771.0,23769.0,0.0002014]
[1659241656808,0.00071322,23772.0,23769.0,0.0002014]
[1659241656809,0.00071322,23772.0,23769.0,0.0446514]
[1659241657076,0.00071322,23772.0,23770.0,0.514056]
[1659241657320,0.00071322,23772.0,23771.0,1.59130858]
[1659241657546,0.00071322,23772.0,23771.0,1.65395206]
[1659241657779,0.00071322,23772.0,23771.0,1.57436306]
[1659241657997,0.00071322,23772.0,23771.0,1.78456415]
[1659241658220,0.00071322,23772.0,23771.0,2.27112067]
[1659241658492,0.00071322,23772.0,23771.0,1.70711058]
[1659241659819,0.00071322,23772.0,23771.0,1.74111058]
[1659241660479,0.00071322,23772.0,23771.0,1.79111058]
[1659241660989,0.00071322,23772.0,23771.0,1.84111058]
[1659241661216,0.00071322,23772.0,23771.0,1.75711058]
[1659241661885,0.00071322,23772.0,23771.0,1.79111058]
[1659241662102,0.00071322,23772.0,23771.0,1.84111058]
[1659241663075,0.00071322,23772.0,23771.0,1.80711058]
[1659241663486,0.00071322,23772.0,23771.0,2.07356306]
[1659241663702,0.00071322,23772.0,23771.0,2.15756306]
[1659241663907,0.00071322,23772.0,23771.0,1.85375406]
[1659241664120,0.00071322,23772.0,23771.0,2.15756306]
[1659241665029,0.00071322,23772.0,23771.0,2.12356306]
[1659241665246,0.00071322,23772.0,23771.0,1.81975406]
[1659241665857,0.00071322,23772.0,23771.0,1.85375406]
[1659241666083,0.00071322,23772.0,23771.0,2.15756306]
[1659241667173,0.00071322,23772.0,23771.0,2.12356306]
[1659241667599,0.00071322,23772.0,23771.0,2.13634416]
[1659241667820,0.00071322,23772.0,23771.0,2.17034416]
[1659241669199,0.00071322,23772.0,23771.0,2.13634416]
[1659241669850,0.00071322,23772.0,23771.0,2.17034416]
[1659241670282,0.00071322,23772.0,23771.0,1.86653516]
[1659241670501,0.00071322,23772.0,23771.0,1.85389168]
[1659241670748,0.00071322,23772.0,23771.0,1.40323843]
[1659241670951,0.00071322,23772.0,23771.0,1.29045733]
[1659241671625,0.00071322,23772.0,23771.0,1.30645733]
[1659241671845,0.00071322,23772.0,23771.0,1.34045733]
[1659241672057,0.00071322,23772.0,23771.0,1.39045733]
[1659241672550,0.00071322,23772.0,23771.0,1.29045733]
[1659241672797,0.00071322,23772.0,23771.0,1.69426633]
[1659241673453,0.00071322,23772.0,23771.0,1.67290981]
[1659241673901,0.00071322,23772.0,23771.0,1.70690981]
[1659241674756,0.00071322,23772.0,23771.0,1.30310081]
[1659241674976,0.00071322,23772.0,23771.0,1.35310081]
[1659241675217,0.00071322,23772.0,23771.0,1.31910081]
[1659241675430,0.00071322,23772.0,23771.0,1.36910081]
[1659241675860,0.00071322,23772.0,23771.0,1.38210081]
[1659241676369,0.00071322,23772.0,23771.0,1.67326633]
[1659241676605,0.00071322,23772.0,23771.0,1.36945733]
[1659241676811,0.00060738,23772.0,23771.0,1.67326633]
[1659241677261,0.00060738,23772.0,23771.0,1.35645733]
[1659241677473,0.00060738,23772.0,23771.0,1.66026633]
[1659241677936,0.00060738,23772.0,23771.0,1.67326633]
[1659241678156,0.00060738,23772.0,23771.0,1.36945733]
[1659241678611,0.3047057,23780.0,23771.0,1.67326633]
[1659241678834,1.01106633,23779.0,23772.0,0.40725733]
[1659241679069,0.303809,23778.0,23772.0,0.40725733]
[1659241679290,0.3,23777.0,23773.0,0.3]
[1659241679533,0.303809,23776.0,23774.0,0.00024542]
[1659241679738,0.353809,23775.0,23774.0,0.00024542]
[1659241680001,0.01975775,23776.0,23774.0,0.00024542]
[1659241680244,0.00089579,23780.0,23774.0,0.00024542]
[1659241680456,0.05,23774.0,23773.0,0.40725733]
[1659241680695,0.3,23778.0,23773.0,0.71131175]
[1659241680932,0.3,23778.0,23773.0,0.40750275]
[1659241681419,0.303809,23777.0,23773.0,0.40750275]
[1659241681603,0.3,23778.0,23774.0,0.3]
[1659241681826,0.303809,23777.0,23774.0,0.3]
[1659241682049,0.01975775,23777.0,23774.0,0.3]
[1659241682285,0.00071119,23780.0,23774.0,0.35]
[1659241682503,0.303809,23779.0,23774.0,0.3]
[1659241682716,0.303809,23778.0,23774.0,0.3]
[1659241682926,0.303809,23777.0,23774.0,0.3]
[1659241683151,0.3,23779.0,23774.0,0.3]
[1659241683370,0.303809,23778.0,23774.0,0.3]
[1659241683583,0.33848216,23777.0,23774.0,0.3]
[1659241683810,0.303809,23776.0,23774.0,0.3]
[1659241684210,0.05,23775.0,23774.0,0.3]
[1659241684215,0.01975775,23776.0,23774.0,0.35]
[1659241684453,0.3,23779.0,23774.0,0.3]
[1659241684673,0.303809,23778.0,23774.0,0.3]
[1659241684903,0.303809,23777.0,23774.0,0.3]
[1659241685129,0.3,23779.0,23774.0,0.3]
[1659241685346,0.303809,23778.0,23774.0,0.3]
[1659241685562,0.34118284,23777.0,23774.0,0.3]
[1659241685802,0.303809,23776.0,23774.0,0.3]
[1659241686018,0.05,23775.0,23774.0,0.3]
[1659241686241,0.01975775,23776.0,23774.0,0.3]
[1659241686466,0.3,23779.0,23774.0,0.3]
[1659241686683,0.303809,23778.0,23774.0,0.3]
[1659241686893,0.34118284,23777.0,23774.0,0.3]
[1659241687100,0.03737384,23777.0,23774.0,0.3]
[1659241687318,0.3,23779.0,23774.0,0.3]
[1659241687570,0.303809,23778.0,23774.0,0.3]
[1659241687783,0.3,23779.0,23774.0,0.3]
[1659241687784,0.303809,23777.0,23774.0,0.3]
[1659241688060,0.303809,23776.0,23774.0,0.3]
[1659241688273,0.3,23779.0,23774.0,0.3]
[1659241688488,0.303809,23778.0,23772.0,0.3]
[1659241688707,0.303809,23777.0,23772.0,0.80725733]
[1659241688935,0.70725733,23779.0,23772.0,0.70725733]
[1659241689149,0.303809,23778.0,23772.0,0.70725733]
[1659241689404,0.303809,23777.0,23772.0,0.70725733]
[1659241689611,0.70725733,23779.0,23772.0,0.70725733]
[1659241689814,0.303809,23778.0,23772.0,0.70725733]
[1659241690029,0.303809,23777.0,23772.0,0.75725733]
[1659241690266,0.70725733,23779.0,23772.0,0.70725733]
[1659241690487,0.303809,23778.0,23772.0,0.75725733]
[1659241690742,0.303809,23777.0,23772.0,0.80725733]
[1659241690960,0.70725733,23779.0,23772.0,0.80725733]
[1659241691195,0.303809,23778.0,23772.0,0.70725733]
[1659241691439,0.303809,23777.0,23772.0,0.70725733]
[1659241691635,0.40725733,23777.0,23772.0,0.3]
[1659241691891,0.303809,23776.0,23772.0,0.3]
[1659241692113,0.00270068,23775.0,23773.0,0.00025355]
[1659241692324,0.40725733,23777.0,23773.0,0.00025355]
[1659241692546,0.303809,23776.0,23773.0,0.00025355]
[1659241692762,0.303809,23775.0,23773.0,0.00025355]
[1659241692979,0.40725733,23777.0,23773.0,0.00025355]
[1659241693212,0.03737384,23775.0,23772.0,0.3]
[1659241693441,0.40725733,23777.0,23773.0,0.00025355]
[1659241693664,0.303809,23776.0,23773.0,0.00025355]
[1659241693902,0.303809,23775.0,23773.0,0.00025355]
[1659241694124,0.40725733,23777.0,23773.0,0.00025355]
[1659241694348,0.303809,23776.0,23773.0,0.00025355]
[1659241694780,0.40725733,23777.0,23773.0,0.00025355]
[1659241694782,0.51512328,23775.0,23774.0,0.40725733]
[1659241695000,0.51512328,23775.0,23774.0,1.11106633]
[1659241695258,0.51512328,23775.0,23774.0,0.71990081]
[1659241695950,0.51512328,23775.0,23774.0,0.31264348]
[1659241696178,0.51512328,23775.0,23774.0,0.01264348]
[1659241696416,0.51512328,23775.0,23774.0,0.31264348]
[1659241696849,0.51512328,23775.0,23774.0,0.70725733]
[1659241697079,0.51512328,23775.0,23774.0,0.71990081]
[1659241697294,0.51512328,23775.0,23774.0,0.76990081]
[1659241697756,0.51505572,23775.0,23774.0,0.71990081]
[1659241698195,0.51505572,23775.0,23774.0,0.31264348]
[1659241698470,0.51505572,23775.0,23774.0,0.01264348]
[1659241700504,0.55242956,23775.0,23774.0,0.01264348]
[1659241700735,0.51505572,23775.0,23774.0,0.01264348]
[1659241702067,0.55242956,23775.0,23774.0,0.01264348]
[1659241702357,0.51505572,23775.0,23774.0,0.01264348]
[1659241702581,0.81886472,23775.0,23771.0,0.5492]
[1659241702801,0.303809,23774.0,23771.0,0.95645733]
[1659241703028,0.03737384,23774.0,23771.0,0.40725733]
[1659241703958,0.03737384,23774.0,23771.0,0.41425733]
[1659241704190,0.00270068,23774.0,23772.0,0.00051211]
[1659241704420,0.51505572,23775.0,23772.0,0.30051211]
[1659241704633,0.51505572,23775.0,23772.0,0.3]
[1659241706470,0.55242956,23775.0,23772.0,0.3]
[1659241707645,0.51505572,23775.0,23772.0,0.3]
[1659241708639,0.51505572,23775.0,23772.0,0.35]
[1659241708851,0.51505572,23775.0,23772.0,0.3]
[1659241709083,0.55242956,23775.0,23772.0,0.3]
[1659241709326,0.303809,23774.0,23772.0,0.3]
[1659241709548,0.55242956,23775.0,23772.0,0.3]
[1659241709775,0.51505572,23775.0,23772.0,0.35]
[1659241710119,0.303809,23774.0,23772.0,0.3]
[1659241710421,0.51505572,23775.0,23772.0,0.3]
[1659241711874,0.51505572,23775.0,23772.0,0.29529277]
[1659241712316,0.51505572,23775.0,23772.0,0.39529277]
[1659241712534,0.51505572,23775.0,23772.0,0.34529277]
[1659241713646,0.51505572,23775.0,23772.0,0.29529277]
[1659241713903,0.05443091,23774.0,23772.0,0.29529277]
[1659241714335,0.33467316,23774.0,23771.0,0.61750133]
[1659241714570,0.03467316,23774.0,23768.0,0.762865]
[1659241714800,0.33467316,23774.0,23769.0,0.40725733]
[1659241715035,0.03467316,23774.0,23769.0,0.40725733]
[1659241715687,0.03467316,23774.0,23770.0,0.3]
[1659241715905,0.03467316,23774.0,23770.0,0.70725733]
[1659241716350,0.33848216,23774.0,23771.0,0.00074294]
[1659241716578,0.56505572,23775.0,23769.0,0.303]
[1659241716810,0.303809,23774.0,23769.0,0.303]
[1659241717045,0.56505572,23775.0,23769.0,0.303]
[1659241717271,0.303809,23774.0,23769.0,0.35]
[1659241717501,0.56505572,23775.0,23769.0,0.35]
[1659241717775,0.56505572,23775.0,23769.0,0.4]
[1659241717999,0.303809,23774.0,23769.0,0.4]
[1659241718216,0.56505572,23775.0,23769.0,0.4]
[1659241718452,0.303809,23774.0,23769.0,0.4]
[1659241718661,0.56505572,23775.0,23769.0,0.4]
[1659241718863,0.303809,23774.0,23769.0,0.4]
[1659241719079,0.56505572,23775.0,23769.0,0.4]
[1659241719300,0.303809,23774.0,23769.0,0.4]
[1659241719520,0.56505572,23775.0,23770.0,0.210248]
[1659241719766,0.303809,23774.0,23770.0,0.210248]
[1659241719972,0.56505572,23775.0,23770.0,0.210248]
[1659241720174,0.303809,23774.0,23770.0,0.210248]
[1659241720628,0.03766661,23773.0,23770.0,0.210248]
[1659241720884,0.56505572,23775.0,23770.0,0.210248]
[1659241721117,0.303809,23774.0,23770.0,0.210248]
[1659241721336,0.56505572,23775.0,23770.0,0.210248]
[1659241721589,0.303809,23774.0,23770.0,0.210248]
[1659241721824,0.56505572,23775.0,23770.0,0.210248]
[1659241722045,0.303809,23774.0,23770.0,0.210248]
[1659241722293,0.56505572,23775.0,23770.0,0.210248]
[1659241722496,0.303809,23774.0,23770.0,0.210248]
[1659241722709,0.56505572,23775.0,23770.0,0.210248]
[1659241722951,0.303809,23774.0,23770.0,0.210248]
[1659241723159,0.56505572,23775.0,23770.0,0.210248]
[1659241723287,0.303809,23774.0,23770.0,0.210248]
[1659241723522,0.56505572,23775.0,23770.0,0.210248]
[1659241723911,0.56505572,23775.0,23770.0,0.260248]
[1659241724120,0.56505572,23775.0,23770.0,0.210248]
[1659241724760,0.303809,23774.0,23770.0,0.210248]
[1659241724972,0.03766661,23773.0,23770.0,0.210248]
[1659241725580,0.56505572,23775.0,23770.0,0.210248]
[1659241725799,0.56505572,23775.0,23770.0,0.260248]
[1659241726296,0.303809,23774.0,23770.0,0.310248]
[1659241726514,0.56505572,23775.0,23771.0,0.3]
[1659241726776,0.56505572,23775.0,23772.0,0.00132223]
[1659241726777,0.303809,23774.0,23772.0,0.00132223]
[1659241727012,0.11975775,23773.0,23771.0,0.3]
[1659241729208,0.56505572,23775.0,23772.0,0.303809]
[1659241729450,0.60272233,23775.0,23773.0,0.3]
[1659241729671,0.303809,23774.0,23771.0,0.3]
[1659241729929,0.56505572,23775.0,23771.0,0.3]
[1659241730149,0.303809,23774.0,23771.0,0.3]
[1659241730364,0.56505572,23775.0,23771.0,0.3]
[1659241730583,0.56505572,23775.0,23771.0,0.3000661]
[1659241731253,0.56505572,23775.0,23771.0,0.31294565]
[1659241731705,0.03766661,23774.0,23771.0,0.31294565]
[1659241732570,0.56505572,23775.0,23771.0,0.31294565]
[1659241732801,0.03766661,23774.0,23771.0,0.31294565]
[1659241733941,0.03758914,23774.0,23771.0,0.31294565]
[1659241734609,0.56505572,23775.0,23771.0,0.31294565]
[1659241736011,0.53481347,23775.0,23771.0,0.72020298]
[1659241736244,0.51505572,23775.0,23771.0,0.73284646]
[1659241736472,0.51505572,23775.0,23773.0,0.05]
[1659241736713,0.51505572,23775.0,23773.0,0.560224]
[1659241737389,0.51505572,23775.0,23774.0,7.747e-05]
[1659241739344,0.51505572,23775.0,23774.0,0.00139959]
[1659241739570,0.51505572,23775.0,23774.0,0.80691592]
[1659241739817,0.51505572,23775.0,23774.0,1.15691592]
[1659241740293,0.51505572,23775.0,23774.0,1.1805594]
[1659241741000,0.45432635,23775.0,23774.0,1.1805594]
[1659241741661,0.45432635,23775.0,23774.0,1.1695594]
[1659241742367,0.45432635,23775.0,23774.0,1.2151394]
[1659241743758,0.45432635,23775.0,23774.0,1.2011394]
[1659241744434,0.45432635,23775.0,23774.0,1.2151394]
[1659241745770,0.45432635,23775.0,23774.0,1.15691592]
[1659241746219,0.45432635,23775.0,23774.0,0.78849592]
[1659241746450,0.45432635,23775.0,23774.0,0.77091592]
[1659241746684,0.45432635,23775.0,23774.0,0.80249592]
[1659241747137,0.45432635,23775.0,23774.0,0.77091592]
[1659241747662,0.45432635,23775.0,23774.0,1.18849592]
[1659241748364,0.45432635,23775.0,23774.0,1.17391592]
[1659241749758,0.39125635,23775.0,23774.0,1.15691592]
[1659241749992,0.3993,23785.0,23776.0,0.210136]
[1659241750210,0.3993,23785.0,23779.0,1.03763233]
[1659241750425,0.41905775,23785.0,23781.0,0.105062]
[1659241750652,0.001,23786.0,23782.0,1.03778189]
[1659241750874,0.001,23786.0,23783.0,0.75725733]
[1659241751092,0.001,23786.0,23785.0,0.03024225]
[1659241751596,0.001,23786.0,23785.0,0.00014355]
[1659241752046,0.001,23786.0,23782.0,0.735444]
[1659241752272,0.001,23786.0,23782.0,0.210127]
[1659241752487,0.11975775,23785.0,23783.0,0.40725733]
[1659241752972,0.0345957,23784.0,23782.0,0.210127]
[1659241753227,0.001,23786.0,23782.0,0.210127]
[1659241753687,0.11975775,23785.0,23782.0,0.210127]
[1659241753924,0.001,23786.0,23782.0,0.210127]
[1659241754365,0.001,23786.0,23784.0,0.03024225]
[1659241754589,0.001,23786.0,23784.0,0.30007747]
[1659241755967,0.303809,23785.0,23784.0,0.30007747]
[1659241756193,0.001,23786.0,23784.0,0.30007747]
[1659241756930,0.001,23786.0,23785.0,0.33405125]
[1659241757168,0.001,23787.0,23785.0,1.63101758]
[1659241757385,0.001,23787.0,23786.0,1.90450858]
[1659241757635,0.001,23787.0,23786.0,1.90457464]
[1659241758093,0.001,23787.0,23786.0,1.91721812]
[1659241758320,0.001,23787.0,23786.0,1.92321812]
[1659241758560,0.0012,23791.0,23790.0,0.78024225]
[1659241758790,0.003,23794.0,23793.0,0.03024225]
[1659241759053,0.00276341,23798.0,23797.0,0.03024225]
[1659241759278,0.00276341,23798.0,23797.0,0.74386609]
[1659241759524,0.00276341,23798.0,23797.0,1.04386609]
[1659241759762,0.00276341,23798.0,23797.0,1.04394356]
[1659241760235,0.003,23808.0,23800.0,0.08024225]
[1659241760483,0.21488144,23816.0,23807.0,0.40725733]
[1659241760735,0.21488144,23816.0,23809.0,0.209881]
[1659241760736,0.50490644,23816.0,23809.0,0.209881]
[1659241760975,0.303809,23815.0,23810.0,0.40725733]
[1659241761203,0.01975775,23815.0,23810.0,0.40725733]
[1659241761443,0.001,23814.0,23810.0,0.40725733]
[1659241761671,0.001,23814.0,23811.0,7.747e-05]
[1659241761672,0.301,23814.0,23811.0,7.747e-05]
[1659241761919,0.42329175,23813.0,23809.0,0.70725733]
[1659241762135,0.11975775,23812.0,23805.0,0.209922]
[1659241762370,0.52701508,23812.0,23805.0,0.40725733]
[1659241762596,0.11975775,23812.0,23806.0,0.3]
[1659241763382,0.603534,23811.0,23805.0,0.40725733]
[1659241763594,0.71079133,23810.0,23799.0,0.209973]
[1659241763792,1.01079133,23809.0,23800.0,0.40725733]
[1659241763999,0.71079133,23808.0,23800.0,0.40725733]
[1659241764246,0.603534,23807.0,23800.0,0.40725733]
[1659241764464,0.303534,23806.0,23800.0,0.40725733]
[1659241764667,0.35,23807.0,23800.0,0.40725733]
[1659241764873,0.303534,23806.0,23800.0,0.40725733]
[1659241765021,0.35,23807.0,23800.0,0.40725733]
[1659241765397,0.303534,23806.0,23800.0,0.40725733]
[1659241765612,0.05,23807.0,23800.0,0.40725733]
[1659241766032,0.40725733,23808.0,23800.0,0.40725733]
[1659241766268,0.223534,23807.0,23801.0,0.01264348]
[1659241766460,0.303534,23806.0,23801.0,0.40725733]
[1659241766725,0.303534,23806.0,23802.0,0.3]
[1659241766955,0.03758915,23805.0,23802.0,0.3]
[1659241767607,0.03758915,23805.0,23799.0,0.209973]
[1659241767808,0.05,23811.0,23803.0,0.209961]
[1659241768069,0.71084233,23810.0,23803.0,0.509961]
[1659241768290,0.00017159,23808.0,23804.0,0.40725733]
[1659241768500,0.079,23805.0,23804.0,1.13069733]
[1659241768709,0.079,23805.0,23804.0,1.4307748]
[1659241769146,0.079,23805.0,23804.0,1.43207422]
[1659241769355,0.079,23805.0,23804.0,1.4947177]
[1659241769778,0.11975775,23813.0,23804.0,1.1911327]
[1659241770012,0.52701508,23813.0,23805.0,0.70725733]
[1659241770241,0.52701508,23813.0,23805.0,0.75725733]
[1659241770441,0.00021305,23809.0,23805.0,0.80725733]
[1659241770708,0.00021305,23809.0,23808.0,0.66971419]
[1659241770926,0.00021305,23809.0,23808.0,1.07697152]
[1659241771145,0.001,23814.0,23808.0,1.12704899]
[1659241771356,0.001,23814.0,23809.0,0.70725733]
[1659241771593,0.11975775,23813.0,23809.0,0.70725733]
[1659241771806,0.03758915,23812.0,23808.0,0.03024225]
[1659241772033,0.303585,23811.0,23808.0,0.03024225]
[1659241772252,0.03258915,23812.0,23808.0,0.03024225]
[1659241772475,0.40825733,23814.0,23807.0,0.209921]
[1659241772709,0.05,23812.0,23807.0,0.61717833]
[1659241772936,0.353585,23812.0,23807.0,0.61717833]
[1659241773170,0.05,23812.0,23807.0,0.61717833]
[1659241773355,0.05,23812.0,23808.0,0.303585]
[1659241773574,0.05,23812.0,23809.0,0.3087274]
[1659241773799,0.05,23812.0,23807.0,0.61717833]
[1659241773800,0.55700721,23811.0,23807.0,0.61717833]
[1659241774018,0.53724946,23811.0,23807.0,0.61717833]
[1659241774260,0.53724946,23811.0,23808.0,0.3]
[1659241774540,0.303585,23810.0,23807.0,0.209921]
[1659241774782,0.303585,23810.0,23803.0,0.204957]
[1659241774783,0.3,23808.0,23803.0,0.209973]
[1659241775015,0.3,23808.0,23804.0,0.40725733]
[1659241775451,0.05,23809.0,23805.0,0.00514241]
[1659241775671,0.00299345,23808.0,23805.0,0.00514241]
[1659241775919,0.0227512,23808.0,23804.0,0.40725733]
[1659241776173,0.0227512,23808.0,23803.0,0.209973]
[1659241776174,0.05,23807.0,23803.0,0.209973]
[1659241776386,0.05,23807.0,23799.0,0.210009]
[1659241776387,0.3831807,23807.0,23799.0,0.210009]
[1659241776636,0.303585,23806.0,23800.0,0.40725733]
[1659241776858,0.71084233,23806.0,23799.0,0.210009]
[1659241777112,0.303585,23805.0,23799.0,0.210009]
[1659241777339,0.40725733,23806.0,23799.0,0.210009]
[1659241778231,0.303585,23805.0,23799.0,0.210009]
[1659241778523,0.40725733,23805.0,23799.0,0.210009]
[1659241778749,0.40725733,23805.0,23799.0,0.260009]
[1659241782024,0.40725733,23805.0,23799.0,0.610009]
[1659241782300,0.40725733,23805.0,23800.0,0.653585]
[1659241782534,0.40725733,23805.0,23800.0,0.35]
[1659241783904,0.00018542,23807.0,23801.0,1.2471758]
[1659241784120,0.00018542,23807.0,23802.0,0.75725733]
[1659241784343,0.53724946,23811.0,23804.0,0.25]
[1659241784570,0.94450679,23811.0,23806.0,0.20995]
[1659241784790,0.76084233,23810.0,23804.0,0.25]
[1659241785022,0.71084233,23809.0,23804.0,0.25]
[1659241785229,0.05,23810.0,23804.0,0.25]
[1659241785230,0.303585,23807.0,23804.0,0.25]
[1659241785440,0.303585,23805.0,23804.0,0.25]
[1659241785659,0.303585,23805.0,23804.0,0.25507746]
[1659241786155,0.303585,23805.0,23804.0,0.25]
[1659241787035,0.40725733,23807.0,23804.0,0.25]
[1659241787260,0.33617415,23806.0,23804.0,0.25]
[1659241787552,0.303585,23805.0,23804.0,0.25]
[1659241788421,0.303585,23805.0,23804.0,0.25507746]
[1659241788627,0.33617415,23805.0,23804.0,0.25]
[1659241789335,0.303585,23805.0,23804.0,0.25]
[1659241789574,0.303585,23805.0,23804.0,0.25507746]
[1659241789798,0.303585,23805.0,23804.0,0.25]
[1659241793395,0.303585,23805.0,23804.0,0.25507746]
[1659241793627,0.303585,23805.0,23804.0,0.25]
[1659241794692,0.353585,23805.0,23804.0,0.25]
[1659241794909,0.38617415,23805.0,23804.0,0.25]
[1659241796291,0.353585,23805.0,23804.0,0.25]
[1659241796495,0.35349898,23805.0,23804.0,0.25]
[1659241797298,0.30349898,23805.0,23804.0,0.25507746]
[1659241797574,0.53724946,23811.0,23804.0,1.26591979]
[1659241797799,0.303582,23810.0,23805.0,0.61720933]
[1659241798016,0.303582,23809.0,23806.0,0.3]
[1659241798260,0.303582,23808.0,23806.0,0.3]
[1659241798490,0.53724946,23811.0,23807.0,0.04952746]
[1659241798727,0.53724946,23811.0,23810.0,0.03024225]
[1659241798981,0.53724946,23811.0,23810.0,0.78749958]
[1659241799222,0.53724946,23811.0,23810.0,0.91716333]
[1659241799443,0.54024291,23811.0,23810.0,0.509906]
[1659241799678,0.53724946,23811.0,23810.0,0.209906]
[1659241799896,0.53724946,23811.0,23810.0,0.509906]
[1659241800158,0.53724946,23811.0,23807.0,0.40495]
[1659241800386,0.53724946,23811.0,23810.0,0.33382425]
[1659241800608,0.53724946,23811.0,23810.0,0.70725733]
[1659241801087,0.53724946,23811.0,23810.0,0.3]
[1659241801825,0.53724946,23811.0,23810.0,0.303582]
[1659241802053,0.53724946,23811.0,23810.0,0.3]
[1659241803234,0.53724946,23811.0,23809.0,0.509915]
[1659241803490,0.53724946,23811.0,23809.0,0.209915]
[1659241803491,0.303582,23810.0,23809.0,0.209915]
[1659241803719,0.353582,23810.0,23805.0,0.929818]
[1659241803925,0.05,23810.0,23806.0,0.40725733]
[1659241804157,0.03258915,23809.0,23806.0,0.40725733]
[1659241804395,0.55700721,23811.0,23807.0,0.30599699]
[1659241804842,0.55700721,23811.0,23807.0,0.3]
[1659241805309,0.53724946,23811.0,23807.0,0.3]
[1659241805764,0.53724946,23811.0,23808.0,0.00507746]
[1659241806219,0.001,23814.0,23813.0,0.03024225]
[1659241806481,0.001,23814.0,23813.0,0.48749958]
[1659241806710,0.001,23814.0,23813.0,1.06591679]
[1659241806958,0.001,23814.0,23813.0,1.02856027]
[1659241807185,0.001,23814.0,23813.0,1.11009027]
[1659241807407,0.001,23814.0,23813.0,1.01591679]
[1659241807626,0.001,23814.0,23813.0,1.09744679]
[1659241807857,0.001,23814.0,23813.0,1.44744679]
[1659241808087,0.00490644,23816.0,23813.0,1.44744679]
[1659241808088,0.00490644,23816.0,23815.0,1.469692]
[1659241808311,0.00490644,23816.0,23815.0,2.25846933]
[1659241808535,0.00490644,23816.0,23815.0,2.56969481]
[1659241808780,0.00490644,23816.0,23815.0,1.56969481]
[1659241809070,0.00490644,23816.0,23815.0,1.55705133]